fUST/lending_fUST_20251228
["ID","MTS","AMOUNT","RATE_DAILY","PERIOD"]
[399916145,1766869832946,-1197.1522425,0.00017257,2]
[399916146,1766869832957,-2128.27065333,0.00017257,2]
[399916147,1766869832968,-3325.42289582,0.00017257,2]
[399916148,1766869832980,-160.0,0.0001755,2]
[399916149,1766869832990,-332.0,0.00017686,2]
[399916150,1766869833001,-197.31683935,0.00017687,2]
[399916151,1766869833011,-513.55325658,0.00017711,2]
[399916152,1766869833022,-250.0,0.00017957,2]
[399916153,1766869833032,-260.0,0.00018098,2]
[399916154,1766869833043,-3490.8104143,0.00018186,2]
[399916155,1766869833053,-816.0,0.00018289,2]
[399916156,1766869833068,-816.0,0.00018326,2]
[399916157,1766869833079,-816.0,0.00018397,2]
[399916158,1766869833089,-816.0,0.00018516,2]
[399916159,1766869833100,-816.0,0.00018538,2]
[399916160,1766869833110,-816.0,0.00018541,2]
[399916161,1766869833120,-271.04640484,0.00018549,2]
[399916162,1766869833131,-816.0,0.00018576,2]
[399916163,1766869833141,-360.0,0.00018646,2]
[399916164,1766869833152,-816.0,0.00018687,2]
[399916165,1766869833163,-247.23053113,0.0001876,2]
[399916166,1766869833173,-816.0,0.00018767,2]
[399916167,1766869833184,-2440.23427299,0.00018772,2]
[399916168,1766869833195,-816.0,0.0001881,2]
[399916169,1766869833205,-816.0,0.00018814,2]
[399916170,1766869833216,-816.0,0.00018838,2]
[399916171,1766869833226,-302.66710251,0.000189,2]
[399916172,1766869833236,-816.0,0.00018971,2]
[399916173,1766869833246,-35132.50354805,0.0001899,2]
[399916174,1766869833261,-630.54574817,0.0001899,2]
[399916175,1766869833274,-1423.00869472,0.0001899,2]
[399916191,1766869838085,-2888.0872181,0.0001899,2]
[399916192,1766869838098,-5502.1121329,0.0001899,2]
[399916193,1766869838110,-19037.16580179,0.0001899,2]
[399916194,1766869838145,-4247.00643768,0.0001899,2]
[399916195,1766869838158,-776.68808795,0.0001899,2]
[399916233,1766869840267,-30362.88233064,0.0001899,2]
[399916235,1766869840278,-1042.97278465,0.00019,2]
[399916237,1766869840291,-18380.18238881,0.00019,2]
[399916239,1766869840301,-151.0,0.00019117,2]
[399916241,1766869840311,-500.0,0.00019178,2]
[399916244,1766869840321,-460.0,0.00019194,2]
[399916246,1766869840336,-1041.66666667,0.00019245,2]
[399916248,1766869840346,-218.592,0.00019315,2]
[399916250,1766869840356,-238.135,0.00019315,2]
[399916252,1766869840366,-150.0,0.00019315,2]
[399916254,1766869840376,-266.794,0.00019315,2]
[399916256,1766869840386,-1363.0,0.00019315,2]
[399916258,1766869840397,-2160.0,0.00019315,2]
[399916260,1766869840408,-416.0,0.00019315,2]
[399916262,1766869840418,-500.0,0.00019315,2]
[399916264,1766869840428,-795.0,0.00019384,2]
[399916266,1766869840438,-500.0,0.00019452,2]
[399916268,1766869840449,-795.0,0.00019551,2]
[399916270,1766869840460,-500.0,0.00019589,2]
[399916272,1766869840470,-1412.41858528,0.000196,2]
[399916274,1766869840480,-170.91,0.000196,2]
[399916276,1766869840490,-500.0,0.0001968,2]
[399916278,1766869840503,-151.0,0.00019684,2]
[399916280,1766869840514,-795.0,0.00019713,2]
[399916282,1766869840524,-203.1602987,0.00019726,2]
[399916284,1766869840534,-560.0,0.00019742,2]
[399916286,1766869840543,-795.0,0.0001985,2]
[399916288,1766869840552,-1136.92852462,0.000199,2]
[399916290,1766869840573,-479.93791128,0.000199,2]
[399916328,1766869845272,-210.70100548,0.000147,2]
[399916329,1766869845283,-2663.04213923,0.000199,2]
[399916339,1766869846155,-210.70100543,0.00017361,2]
[399916340,1766869846165,-1241.67299457,0.000199,2]
[399916341,1766869846179,-4769.4384303,0.000199,2]
[399916342,1766869846189,-1206.6981498,0.000199,2]
[399916343,1766869846200,-1206.69814976,0.000199,2]
[399916344,1766869846211,-1206.69814976,0.000199,2]
[399916345,1766869846222,-1206.69814976,0.000199,2]
[399916346,1766869846233,-1206.69814976,0.000199,2]
[399916347,1766869846243,-1206.69814976,0.000199,2]
[399916348,1766869846253,-795.0,0.00019928,2]
[399916349,1766869846263,-500.0,0.00019973,2]
[399916350,1766869846276,-500.0,0.00019973,2]
[399916351,1766869846287,-481.64675475,0.00019973,2]
[399916353,1766869853095,150.0,9.533e-05,2]
[399916354,1766869853423,150.0,9.987e-05,2]
[399916355,1766869853868,150.0,0.0001044,2]
[399916356,1766869854332,150.0,0.00010894,2]
[399916357,1766869854713,150.0,0.00011348,2]
[399916358,1766869864523,136.0097785,0.00014614,2]
[399916359,1766869866072,168.5,0.000144,2]
[399916360,1766869919546,150.0,9.567e-05,2]
[399916361,1766869919981,150.0,0.00010022,2]
[399916362,1766869920632,150.0,0.00010478,2]
[399916363,1766869921093,150.0,0.00010933,2]
[399916364,1766869921560,150.0,0.00011389,2]
[399916365,1766869921995,178.43,0.00011844,2]
[399916366,1766869922422,208.16,0.000123,2]
[399916367,1766869922864,237.9,0.00012755,2]
[399916371,1766869923303,267.64,0.00013211,2]
[399916372,1766869923765,297.38,0.00013667,2]
[399916373,1766869943161,168.15,0.000144,2]
[399916374,1766869990282,150.0,9.596e-05,2]
[399916375,1766869990752,150.0,0.00010053,2]
[399916376,1766870046497,5000.0,0.0001439,2]
[399916377,1766870070521,5000.0,0.0001439,2]
[399916378,1766870094542,1611.28796438,0.0001439,2]
[399916381,1766870319664,1000.0,0.00013758,2]
[399916391,1766870737162,-271.18042414,0.000144,2]
[399916392,1766870751123,-354.81957586,0.000144,2]
[399916393,1766870751145,-185.49,0.000144,2]
[399916394,1766870751166,-29.97207981,0.00014445,2]
[399916396,1766870949395,-181.78,0.000144,2]
[399916397,1766870949417,-149.88611976,0.00014445,2]
[399916398,1766871024574,150.98,0.000144,2]
[399916418,1766871032267,-158.02575409,0.00014651,2]
[399916419,1766871032277,-134.41137445,0.00014651,2]
[399916420,1766871032289,-365.58862555,0.00014651,2]
[399916421,1766871032300,-31987.78308716,0.00014652,2]
[399916423,1766871032601,-500.0,0.00014651,2]
[399916424,1766871032611,-467.1592,0.00014651,2]
[399916438,1766871038438,-184.77833801,0.00014651,2]
[399916440,1766871038449,-261.77166199,0.00014651,2]
[399916441,1766871038497,-282.25498479,0.00014651,2]
[399916442,1766871038507,-500.0,0.00014651,2]
[399916443,1766871038516,-489.07248354,0.00014651,2]
[399916444,1766871038527,-500.0,0.00014651,2]
[399916445,1766871038538,-273.77207409,0.00014651,2]
[399916446,1766871038557,-226.22792591,0.00014651,2]
[399916447,1766871038566,-500.0,0.00014651,2]
[399916448,1766871038575,-500.0,0.00014651,2]
[399916449,1766871038585,-500.0,0.00014651,2]
[399916450,1766871038594,-500.0,0.00014651,2]
[399916451,1766871038604,-198.73641632,0.00014651,2]
[399916452,1766871038613,-500.0,0.00014651,2]
[399916453,1766871038624,-500.0,0.00014651,2]
[399916454,1766871038634,-400.39166141,0.00014651,2]
[399916455,1766871038644,-500.0,0.00014651,2]
[399916456,1766871038655,-406.04517277,0.00014651,2]
[399916457,1766871038665,-500.0,0.00014651,2]
[399916458,1766871038676,-500.0,0.00014651,2]
[399916459,1766871038686,-500.0,0.00014651,2]
[399916460,1766871038696,-500.0,0.00014651,2]
[399916461,1766871038706,-500.0,0.00014651,2]
[399916462,1766871038717,-500.0,0.00014651,2]
[399916463,1766871038728,-500.0,0.00014651,2]
[399916464,1766871038738,-500.0,0.00014651,2]
[399916465,1766871038749,-500.0,0.00014651,2]
[399916466,1766871038759,-500.0,0.00014651,2]
[399916467,1766871038769,-500.0,0.00014651,2]
[399916468,1766871038780,-500.0,0.00014651,2]
[399916469,1766871038791,-521.69881455,0.00014651,2]
[399916470,1766871038801,-500.0,0.00014651,2]
[399916471,1766871038811,-500.0,0.00014651,2]
[399916472,1766871038822,-500.0,0.00014651,2]
[399916473,1766871038834,-500.0,0.00014651,2]
[399916474,1766871038844,-500.0,0.00014651,2]
[399916475,1766871038855,-500.0,0.00014651,2]
[399916476,1766871038866,-500.0,0.00014651,2]
[399916477,1766871038876,-500.0,0.00014651,2]
[399916478,1766871038886,-500.0,0.00014651,2]
[399916479,1766871038900,-500.0,0.00014651,2]
[399916480,1766871039121,-500.0,0.00014651,2]
[399916481,1766871039148,-500.0,0.00014651,2]
[399916482,1766871039159,-500.0,0.00014651,2]
[399916483,1766871039171,-500.0,0.00014651,2]
[399916484,1766871039183,-500.0,0.00014651,2]
[399916485,1766871039194,-500.0,0.00014651,2]
[399916486,1766871039206,-500.0,0.00014651,2]
[399916487,1766871039217,-500.0,0.00014651,2]
[399916488,1766871039229,-500.0,0.00014651,2]
[399916489,1766871039241,-500.0,0.00014651,2]
[399916490,1766871039255,-500.0,0.00014651,2]
[399916491,1766871039268,-500.0,0.00014651,2]
[399916492,1766871039280,-500.0,0.00014651,2]
[399916493,1766871039291,-240.4824681,0.00014651,2]
[399916494,1766871039309,-500.0,0.00014651,2]
[399916495,1766871039321,-500.0,0.00014651,2]
[399916496,1766871039337,-500.0,0.00014651,2]
[399916497,1766871039347,-500.0,0.00014651,2]
[399916498,1766871039361,-500.0,0.00014651,2]
[399916499,1766871039372,-500.0,0.00014651,2]
[399916500,1766871039382,-500.0,0.00014651,2]
[399916501,1766871039394,-500.0,0.00014651,2]
[399916502,1766871039405,-437.34998205,0.00014651,2]
[399916503,1766871039415,-301276.08642883,0.00014652,2]
[399916504,1766871039535,-6395.71012933,0.00014652,2]
[399916534,1766871040805,-1554.47805157,0.00014652,2]
[399916620,1766871045839,-448.50501451,0.0001465,2]
[399916621,1766871045853,-9551.49498549,0.0001465,2]
[399916622,1766871045864,-88392.27549161,0.00014652,2]
[399916623,1766871045901,-8227.64559349,0.00014652,2]
[399916636,1766871046769,-30.13115824,0.00014652,2]
[399916637,1766871046781,-33822.30434693,0.00014652,2]
[399916638,1766871046843,-323.89483058,0.00014652,2]
[399916639,1766871067809,174.16,0.000144,2]
[399916640,1766871079990,150.0,8.935e-05,2]
[399916641,1766871080517,150.0,9.36e-05,2]
[399916642,1766871080882,150.0,9.786e-05,2]
[399916643,1766871081278,150.0,0.00010211,2]
[399916644,1766871632284,-153.84,0.000144,2]
[399916645,1766871667190,173.76,0.000144,2]
[399916647,1766871694232,297.5119777,0.00013647,2]
[399916648,1766871742808,156.31,0.000144,2]
[399916649,1766871746090,518.5520416,0.00013699,2]
[399916650,1766871785256,3700.0259807,0.00013782,2]
[399916651,1766871785288,23357.6791432,0.00013782,2]
[399916662,1766871921178,165.559056,0.00013753,2]
[399916664,1766871955233,-173.41,0.000144,2]
[399916665,1766871955256,-186.30902614,0.00014512,2]
[399916666,1766871955278,-158.02575407,0.00014545,2]
[399916667,1766871955298,-300.0,0.00014643,2]
[399916668,1766871955319,-300.0,0.00014643,2]
[399916669,1766871955340,-300.0,0.00014643,2]
[399916670,1766871955361,-67.07389504,0.00014643,2]
[399916672,1766872021600,634.487985,0.00013699,2]
[399916673,1766872040129,-169.94,0.000144,2]
[399916674,1766872040151,-300.0,0.00014642,2]
[399916675,1766872040173,-182.58284561,0.00014642,2]
[399916676,1766872040195,-69.75238981,0.00014643,2]
[399916677,1766872147943,166.54,0.000144,2]
[399916678,1766872149113,163.42756633,0.00014543,2]
[399916679,1766872154132,-395.79442501,0.00014642,2]
[399916680,1766872162141,-104.20557499,0.00014642,2]
[399916681,1766872162167,-500.0,0.00014642,2]
[399916682,1766872162190,-500.0,0.00014642,2]
[399916683,1766872162212,-500.0,0.00014642,2]
[399916684,1766872162235,-500.0,0.00014642,2]
[399916685,1766872162260,-500.0,0.00014642,2]
[399916686,1766872162284,-189.13448255,0.00014642,2]
[399916687,1766872166243,2387.56898749,0.00014544,2]
[399916705,1766872232508,-160.43,0.000144,2]
[399916706,1766872232518,-1200.0,0.0001454,2]
[399916707,1766872232528,-119.570025,0.00014541,2]
[399916716,1766872232689,-1376.70538819,0.00014541,2]
[399916725,1766872238644,-438.41934811,0.00014541,2]
[399916726,1766872238656,-2246.8077548,0.00014541,2]
[399916727,1766872238705,-5818.4974839,0.00014541,2]
[399916728,1766872238715,-500.0,0.00014542,2]
[399916729,1766872238725,-500.0,0.00014542,2]
[399916730,1766872238735,-548.59444245,0.00014542,2]
[399916731,1766872238745,-500.0,0.00014542,2]
[399916732,1766872238754,-430.2419702,0.00014542,2]
[399916733,1766872238765,-500.0,0.00014542,2]
[399916734,1766872238775,-500.0,0.00014542,2]
[399916735,1766872238785,-500.0,0.00014542,2]
[399916736,1766872238795,-500.0,0.00014542,2]
[399916737,1766872238805,-382.89945385,0.00014542,2]
[399916738,1766872238815,-500.0,0.00014542,2]
[399916739,1766872238825,-316.94644137,0.00014542,2]
[399916740,1766872238836,-500.0,0.00014542,2]
[399916741,1766872238845,-500.0,0.00014542,2]
[399916742,1766872238856,-500.0,0.00014542,2]
[399916743,1766872238866,-500.0,0.00014542,2]
[399916744,1766872238876,-500.0,0.00014542,2]
[399916745,1766872238886,-500.0,0.00014542,2]
[399916746,1766872238900,-500.0,0.00014542,2]
[399916747,1766872238911,-500.0,0.00014542,2]
[399916748,1766872238921,-500.0,0.00014542,2]
[399916749,1766872238931,-500.0,0.00014542,2]
[399916750,1766872238941,-500.0,0.00014542,2]
[399916751,1766872238951,-231.85656876,0.00014542,2]
[399916752,1766872238961,-500.0,0.00014542,2]
[399916753,1766872238971,-280.22264145,0.00014542,2]
[399916783,1766872240757,-219.77735855,0.00014542,2]
[399916785,1766872240767,-500.0,0.00014542,2]
[399916786,1766872240777,-500.0,0.00014542,2]
[399916788,1766872240787,-500.0,0.00014542,2]
[399916790,1766872240797,-500.0,0.00014542,2]
[399916792,1766872240807,-500.0,0.00014542,2]
[399916793,1766872240818,-500.0,0.00014542,2]
[399916794,1766872240828,-500.0,0.00014542,2]
[399916795,1766872240837,-500.0,0.00014542,2]
[399916796,1766872240847,-500.0,0.00014542,2]
[399916797,1766872240857,-500.0,0.00014542,2]
[399916798,1766872240867,-500.0,0.00014542,2]
[399916799,1766872240878,-500.0,0.00014542,2]
[399916800,1766872240887,-500.0,0.00014542,2]
[399916801,1766872240897,-500.0,0.00014542,2]
[399916802,1766872240907,-500.0,0.00014542,2]
[399916803,1766872240917,-500.0,0.00014542,2]
[399916804,1766872240927,-500.0,0.00014542,2]
[399916805,1766872240936,-500.0,0.00014542,2]
[399916806,1766872240946,-500.0,0.00014542,2]
[399916807,1766872240955,-500.0,0.00014542,2]
[399916808,1766872240965,-500.0,0.00014542,2]
[399916809,1766872240975,-500.0,0.00014542,2]
[399916810,1766872240984,-500.0,0.00014542,2]
[399916811,1766872240993,-500.0,0.00014543,2]
[399916812,1766872241003,-500.0,0.00014543,2]
[399916813,1766872241014,-346.22308338,0.00014543,2]
[399916814,1766872241024,-572.56312717,0.00014543,2]
[399916815,1766872241034,-500.0,0.00014543,2]
[399916816,1766872241044,-300.0,0.00014543,2]
[399916817,1766872241054,-300.0,0.00014543,2]
[399916818,1766872241064,-300.0,0.00014543,2]
[399916819,1766872241075,-4375.11688052,0.00014544,2]
[399916841,1766872246684,-3405.66973687,0.00014541,2]
[399916848,1766872246870,-4882.18917942,0.00014544,2]
[399916857,1766872366979,150.0,7.37e-05,2]
[399916858,1766872367388,150.0,7.721e-05,2]
[399916859,1766872367837,150.0,8.071e-05,2]
[399916860,1766872368278,150.0,8.422e-05,2]
[399916861,1766872368718,150.0,8.773e-05,2]
[399916862,1766872369187,150.0,9.124e-05,2]
[399916863,1766872369638,150.0,9.475e-05,2]
[399916864,1766872370043,150.0,9.826e-05,2]
[399916865,1766872370490,161.79,0.00010177,2]
[399916869,1766873030906,1735.3528381,0.00013872,2]
[399916870,1766873086870,5000.0,0.0001439,2]
[399916871,1766873094662,295.38,0.00012329,2]
[399916872,1766873105112,246.15,0.00012329,2]
[399916879,1766873110093,206.03497485,0.0001439,2]
[399916889,1766873115540,205.12,0.00012329,2]
[399916890,1766873125994,170.93,0.00012329,2]
[399916891,1766873136638,854.7,0.00012329,2]
[399916892,1766873157141,-198.39580423,0.000144,2]
[399916893,1766873163923,207.26351811,0.000143,2]
[399916894,1766873180994,2822.2794473,0.0001439,2]
[399916895,1766873203585,150.0,7.185e-05,2]
[399916896,1766873204016,150.0,7.527e-05,2]
[399916897,1766873204453,150.0,7.87e-05,2]
[399916898,1766873205106,150.0,8.212e-05,2]
[399916899,1766873205533,150.0,8.554e-05,2]
[399916900,1766873205970,150.0,8.896e-05,2]
[399916901,1766873206607,150.0,9.238e-05,2]
[399916902,1766873207066,150.0,9.58e-05,2]
[399916903,1766873249572,500.0,0.00013699,2]
[399916904,1766873249620,489.50773762,0.00014247,2]
[399916905,1766873250442,5000.0,0.0001439,2]
[399916906,1766873265584,845.0606246,0.00014359,2]
[399916907,1766873271698,150.0,7.184e-05,2]
[399916908,1766873272178,150.0,7.526e-05,2]
[399916909,1766873272591,150.0,7.868e-05,2]
[399916910,1766873273062,150.0,8.211e-05,2]
[399916911,1766873273902,5000.0,0.0001439,2]
[399916912,1766873290214,500.0,0.00013699,2]
[399916913,1766873290264,1000.0,0.00014247,2]
[399916914,1766873297816,5000.0,0.0001439,2]
[399916915,1766873301473,200.0,0.00010648,2]
[399916916,1766873321511,5000.0,0.0001439,2]
[399916917,1766873337359,150.0,7.212e-05,2]
[399916918,1766873337816,150.0,7.555e-05,2]
[399916919,1766873338815,150.0,7.899e-05,2]
[399916920,1766873339247,150.0,8.242e-05,2]
[399916921,1766873339693,150.0,8.585e-05,2]
[399916922,1766873340142,150.0,8.929e-05,2]
[399916923,1766873345604,432.43331344,0.0001439,2]
[399916924,1766873352108,-187.4911,0.00014399,2]
[399916925,1766873352131,-266.68608884,0.000144,2]
[399916926,1766873352152,-301.60419577,0.000144,2]
[399916927,1766873352173,-244.80328407,0.000144,2]
[399916928,1766873352196,-300.0,0.0001443,2]
[399916929,1766873352217,-300.0,0.0001443,2]
[399916930,1766873352239,-10000.0,0.00014431,2]
[399916931,1766873352259,-500.0,0.00014433,2]
[399916932,1766873352279,-46302.23188125,0.00014433,2]
[399916933,1766873403387,509.33744585,0.00013699,2]
[399916934,1766873404563,150.0,7.115e-05,2]
[399916935,1766873405021,150.0,7.453e-05,2]
[399916936,1766873405421,150.0,7.792e-05,2]
[399916937,1766873405870,150.0,8.131e-05,2]
[399916938,1766873406313,150.0,8.47e-05,2]
[399916939,1766873406708,153.17,8.808e-05,2]
[399916940,1766873407160,178.7,9.147e-05,2]
[399916941,1766873407603,204.23,9.486e-05,2]
[399916942,1766873408040,229.76,9.825e-05,2]
[399916943,1766873408475,255.29,0.00010164,2]
[399916944,1766873409826,500.0,0.00013699,2]
[399916945,1766873409873,1000.0,0.00014247,2]
[399916981,1766873431581,-626.0,0.000144,2]
[399916983,1766873431591,-252.31,0.000144,2]
[399916985,1766873431601,-3294.15759468,0.00014431,2]
[399916987,1766873431612,-1200.0,0.00014431,2]
[399916989,1766873431621,-300.0,0.00014432,2]
[399916991,1766873431631,-300.0,0.00014432,2]
[399916994,1766873431641,-300.0,0.00014432,2]
[399916996,1766873431651,-300.0,0.00014432,2]
[399916997,1766873431660,-2715.75832481,0.00014433,2]
[399917000,1766873431672,-982.00979394,0.00014433,2]
[399917002,1766873431682,-500.0,0.00014433,2]
[399917004,1766873431691,-305.43151463,0.00014433,2]
[399917006,1766873431700,-1200.0,0.00014433,2]
[399917008,1766873431709,-199.81483321,0.00014433,2]
[399917010,1766873431719,-500.0,0.00014433,2]
[399917012,1766873431728,-531.69636672,0.00014433,2]
[399917014,1766873431738,-500.0,0.00014433,2]
[399917016,1766873431749,-484.25650225,0.00014433,2]
[399917018,1766873431758,-500.0,0.00014433,2]
[399917019,1766873431767,-500.0,0.00014433,2]
[399917021,1766873431777,-500.0,0.00014433,2]
[399917023,1766873431786,-500.0,0.00014433,2]
[399917025,1766873431795,-500.0,0.00014433,2]
[399917027,1766873431804,-500.0,0.00014433,2]
[399917028,1766873431813,-500.0,0.00014433,2]
[399917030,1766873431826,-500.0,0.00014433,2]
[399917032,1766873431835,-500.0,0.00014433,2]
[399917033,1766873431845,-500.0,0.00014433,2]
[399917034,1766873431854,-500.0,0.00014433,2]
[399917036,1766873431865,-500.0,0.00014433,2]
[399917038,1766873431875,-500.0,0.00014433,2]
[399917040,1766873431884,-500.0,0.00014433,2]
[399917041,1766873431893,-500.0,0.00014433,2]
[399917044,1766873431904,-500.0,0.00014433,2]
[399917046,1766873431914,-500.0,0.00014433,2]
[399917048,1766873431929,-500.0,0.00014433,2]
[399917050,1766873431941,-500.0,0.00014433,2]
[399917052,1766873431953,-500.0,0.00014433,2]
[399917054,1766873431964,-500.0,0.00014433,2]
[399917057,1766873431976,-500.0,0.00014433,2]
[399917059,1766873431988,-500.0,0.00014433,2]
[399917061,1766873432001,-500.0,0.00014433,2]
[399917063,1766873432012,-500.0,0.00014433,2]
[399917065,1766873432024,-500.0,0.00014433,2]
[399917068,1766873432036,-500.0,0.00014433,2]
[399917070,1766873432049,-500.0,0.00014433,2]
[399917072,1766873432059,-500.0,0.00014433,2]
[399917074,1766873432070,-500.0,0.00014433,2]
[399917076,1766873432080,-500.0,0.00014433,2]
[399917078,1766873432090,-382.20412291,0.00014433,2]
[399917080,1766873432100,-500.0,0.00014433,2]
[399917082,1766873432110,-500.0,0.00014433,2]
[399917084,1766873432121,-500.0,0.00014433,2]
[399917086,1766873432133,-500.0,0.00014433,2]
[399917088,1766873432144,-500.0,0.00014433,2]
[399917090,1766873432155,-263.56422481,0.00014433,2]
[399917092,1766873432166,-500.0,0.00014433,2]
[399917094,1766873432177,-500.0,0.00014433,2]
[399917097,1766873432191,-500.0,0.00014433,2]
[399917099,1766873432202,-500.0,0.00014433,2]
[399917101,1766873432213,-500.0,0.00014433,2]
[399917103,1766873432224,-500.0,0.00014433,2]
[399917105,1766873432235,-500.0,0.00014433,2]
[399917107,1766873432246,-152.47586503,0.00014433,2]
[399917109,1766873432257,-500.0,0.00014433,2]
[399917112,1766873432268,-500.0,0.00014433,2]
[399917114,1766873432280,-500.0,0.00014433,2]
[399917116,1766873432291,-500.0,0.00014433,2]
[399917118,1766873432302,-500.0,0.00014433,2]
[399917120,1766873432313,-500.0,0.00014433,2]
[399917122,1766873432325,-500.0,0.00014433,2]
[399917124,1766873432336,-500.0,0.00014433,2]
[399917126,1766873432347,-500.0,0.00014433,2]
[399917128,1766873432358,-500.0,0.00014433,2]
[399917130,1766873432370,-500.0,0.00014433,2]
[399917133,1766873432381,-500.0,0.00014433,2]
[399917135,1766873432392,-500.0,0.00014433,2]
[399917137,1766873432405,-500.0,0.00014433,2]
[399917139,1766873432416,-500.0,0.00014433,2]
[399917141,1766873432427,-500.0,0.00014433,2]
[399917143,1766873432438,-500.0,0.00014433,2]
[399917146,1766873432448,-500.0,0.00014433,2]
[399917148,1766873432459,-177.66590635,0.00014433,2]
[399917603,1766873437655,-500.0,0.00014432,2]
[399917605,1766873437666,-412.51209023,0.00014432,2]
[399917607,1766873437676,-500.0,0.00014432,2]
[399917609,1766873437686,-500.0,0.00014432,2]
[399917612,1766873437703,-500.0,0.00014432,2]
[399917614,1766873437713,-500.0,0.00014432,2]
[399917616,1766873437724,-500.0,0.00014432,2]
[399917618,1766873437735,-412.31198294,0.00014432,2]
[399917620,1766873437746,-500.0,0.00014432,2]
[399917622,1766873437757,-500.0,0.00014432,2]
[399917624,1766873437767,-500.0,0.00014432,2]
[399917626,1766873437778,-500.0,0.00014432,2]
[399917628,1766873437789,-500.0,0.00014432,2]
[399917630,1766873437799,-500.0,0.00014432,2]
[399917632,1766873437814,-500.0,0.00014432,2]
[399917634,1766873437826,-152.49600223,0.00014432,2]
[399917636,1766873437836,-500.0,0.00014432,2]
[399917639,1766873437847,-500.0,0.00014432,2]
[399917641,1766873437856,-500.0,0.00014432,2]
[399917643,1766873437867,-500.0,0.00014432,2]
[399917645,1766873437877,-500.0,0.00014432,2]
[399917647,1766873437888,-500.0,0.00014432,2]
[399917649,1766873437898,-500.0,0.00014432,2]
[399917651,1766873437909,-305.43151462,0.00014433,2]
[399917653,1766873437919,-305.43151462,0.00014434,2]
[399917655,1766873437929,-305.43151462,0.00014434,2]
[399917657,1766873437940,-305.43151462,0.00014434,2]
[399917659,1766873437950,-73180.3811445,0.00014437,2]
[399917662,1766873437968,-155119.63086001,0.00014437,2]
[399917664,1766873437980,-3607.13921305,0.00014437,2]
[399917666,1766873437993,-674.67465057,0.00014437,2]
[399918273,1766873444478,1000.0,0.00013777,2]
[399918410,1766873445907,-14282.67190701,0.00014437,2]
[399919678,1766873474130,150.0,8.091e-05,2]
[399919679,1766873632754,718.9006526,0.00013872,2]
[399919680,1766873652652,165.11072628,0.00014329,2]
[399919681,1766873735309,465.27325107,0.00013872,2]
[399919682,1766873769633,200.0,0.00014158,2]
[399919683,1766873770151,150.0,0.00014158,2]
[399919684,1766873770307,212.55102871,0.00014295,2]
[399919685,1766873801133,2405.29600854,0.00014328,2]
[399919686,1766873837502,150.0,0.00014158,2]
[399919687,1766873892011,240.81,0.0001439,2]
[399919689,1766873985108,251.89,0.0001439,2]
[399919690,1766874067482,561.05828121,0.00014067,2]
[399919691,1766874081424,2104.63400749,0.00014319,2]
[399919694,1766874185323,1000000.0,0.00014325,2]
[399919695,1766874246404,1348.5643013,0.00013699,2]
[399919696,1766874333127,-581.69441578,0.000144,2]
[399919697,1766874334794,124795.12189154,0.00014319,2]
[399919698,1766874366805,1841.55475658,0.00014315,2]